Cogmind - Beta 10.2 @@@ ROGUE MODE // 2021.02.20 @ 10:47:16 Player: TheGreatBorealis Result: Destroyed by Y-64 Sentinel with KE Penetrator Performance ------------- Evolutions (6) 3000 Regions Visited (9) 1800 Robots Destroyed (130) 650 Value Destroyed (5026) 5026 Prototype IDs (8) 160 Alien Tech Used (0) 0 Bonus (142) 142 TOTAL SCORE: 10778 Bonus ------- High Alert Combat Kills 142 Cogmind --------- Core Integrity 0/1150 Matter 263/300 Energy 99/100 System Corruption 14% Temperature Cool (9) Movement Core (50) Location -4/Factory Parts ------- > --- POWER (2) -------- (None) > --- PROPULSION (4) --- (None) > --- UTILITY (9) ------ Advanced Signal Interpreter Advanced Terrain Scan Processor Improved Target Analyzer Power Shielding > --- WEAPON (4) ------- (None) > --- INVENTORY (4) ---- Advanced Heat Sink Large Matter Pod (36) Matter Compressor Peak State ------------ > --- POWER ------------ Micro Fission Core > --- PROPULSION ------- Advanced Treads Advanced Treads Advanced Treads Advanced Treads > --- UTILITY ---------- High-capacity Storage Unit Advanced Signal Interpreter Advanced Terrain Scan Processor Targeting Computer Improved Target Analyzer Improved Core Analyzer Improved Utility Shielding Hacking Suite > --- WEAPON ----------- KE Penetrator Mass Driver Chainsword Chainsword > --- INVENTORY -------- Light Angular Momentum Engine Improved Heat Sink Large Storage Unit Large Storage Unit Large Matter Pod Advanced Sensor Array Long-range Terrain Scanner Power Shielding Tesla Rifle Mass Driver Mass Driver Heavy Rocket Launcher [Rating: 68] Favorites ----------- Power Heavy Ion Engine Engine Heavy Ion Engine Power Core Micro Nuclear Core Reactor Light Antimatter Reactor Propulsion Light Treads Treads Light Treads Leg Carbon-fiber Leg Hover Unit Improved Gravmag System Flight Unit Nuclear Pulse Array Utility Large Storage Unit Device Long-range Terrain Scanner Storage Large Storage Unit Processor Targeting Computer Hackware Hacking Suite Protection Improved Utility Shielding Weapon Chainsword Energy Gun High-powered Shock Rifle Ballistic Gun Heavy Assault Rifle Ballistic Cannon Assault Cannon Launcher Heavy Rocket Launcher Special Weapon Plasma Cutter Slashing Weapon Chainsword Build | -11 -10 -9 -8 -7 -6 -5 -5 -5 -4 ------- Run | Scr Mat Mat Mat Fac Fac Fac Ext Cet Fac Slots Evolved 12 | . . 2 2 2 2 2 . . 2 Power 1 | . . . . . . . . . 1 Propulsion 2 | . . 2 . . . . . . . Utility 7 | . . . 1 1 2 2 . . 1 Weapon 2 | . . . 1 1 . . . . . Parts Attached 129 | . 10 9 27 15 13 27 17 . 11 Power 11 | . 1 2 1 1 1 1 3 . 1 Engine 8 | . 1 2 1 1 . . 3 . . Core 2 | . . . . . 1 1 . . . Reactor 1 | . . . . . . . . . 1 Propulsion 45 | . 5 4 11 3 4 10 5 . 3 Treads 34 | . 4 4 11 3 1 6 3 . 2 Leg 5 | . . . . . 3 2 . . . Wheel . | . . . . . . . . . . Hover 4 | . 1 . . . . 2 . . 1 Flight 2 | . . . . . . . 2 . . Utility 34 | . 2 . 6 6 6 10 1 . 3 Device 10 | . 1 . . 3 1 2 1 . 2 Storage 5 | . 1 . 2 . 1 1 . . . Processor 6 | . . . . 1 1 4 . . . Hackware 1 | . . . . . . 1 . . . Protection 12 | . . . 4 2 3 2 . . 1 Artifact . | . . . . . . . . . . Weapon 39 | . 2 3 9 5 2 6 8 . 4 Energy Gun 8 | . . . . . 1 3 1 . 3 Energy Cannon . | . . . . . . . . . . Ballistic Gun 14 | . 2 3 8 . . . 1 . . Ballistic Cannon 6 | . . . . 1 1 2 2 . . Launcher 3 | . . . 1 . . . 2 . . Special Weapon 1 | . . . . . . . . . 1 Impact Weapon . | . . . . . . . . . . Slashing Weapon 7 | . . . . 4 . 1 2 . . Piercing Weapon . | . . . . . . . . . . Special Melee Weapon . | . . . . . . . . . . Unidentified Prototypes 2 | . . . 2 . . . . . . Parts Lost 57 | . 1 1 4 4 9 9 15 . 14 Power 5 | . . 1 . . 1 1 2 . . Propulsion 25 | . . . 4 1 5 4 6 . 5 Utility 10 | . 1 . . 1 1 2 1 . 4 Weapon 17 | . . . . 2 2 2 6 . 5 Highest Loss Streak 7 | . 1 1 1 2 3 5 5 . 7 Average Slot Usage (%) 91 | . 98 100 97 97 89 92 89 52 36 Engine 5 | . 14 11 9 7 2 . . . . Core 1 | . . . . . 3 5 3 . . Treads 24 | . 27 44 33 30 18 12 17 . 2 Leg 1 | . . . . . 6 2 . . . Device 3 | . 10 . . 7 9 2 . 5 2 Storage 11 | . 15 22 18 12 6 5 4 . . Processor 9 | . . . . 5 7 18 29 29 24 Protection 5 | . . . 9 3 7 11 4 . 1 Ballistic Gun 14 | . 28 22 26 16 5 . 2 . . Ballistic Cannon 3 | . . . . 7 6 5 6 . . Slashing Weapon 4 | . . . . 3 12 9 8 5 . Naked Turns . | . . . . . . . . . . Heaviest Build 69 | 12 18 18 44 51 55 60 69 4 14 Greatest Support 89 | 20 46 86 86 86 84 88 89 20 70 Greatest Overweight (x) 2 | . 2 . . . 2 2 2 . 2 Average Overweight (x) . | . . . . . . . . . . Largest Inventory Capacity 12 | . 6 6 10 10 10 12 12 4 4 Average Capacity 8 | . 6 6 8 10 10 10 11 4 4 Most Carried 12 | . 6 6 10 10 10 11 12 3 4 Average Carried 8 | . 5 5 8 9 8 9 10 3 3 Final Capacity 12 | 6 6 6 10 10 10 12 4 4 4 Final Carried 11 | 6 6 6 10 10 10 11 3 3 3 Class Distribution -------------------- 45% | Mutant 16% | Tank 10% | Scavenger-Tank 8% | Machinist-Mutant 8% | Gunner 8% | Scavenger-Mutant Dominant Class ---------------- Mutant | -10/Materials Mutant | -9/Materials Tank | -8/Materials Gunner | -7/Factory Scavenger-Mutant | -6/Factory Mutant | -5/Factory Machinist-Mutant | -5/Extension Mutant | -5/Cetus Mutant | -4/Factory Resources | -11 -10 -9 -8 -7 -6 -5 -5 -5 -4 ----------- Run | Scr Mat Mat Mat Fac Fac Fac Ext Cet Fac Matter Collected 4564 | 200 399 445 1089 618 441 591 588 . 193 Remotely 212 | . . . . 152 . 60 . . . Salvage Created 5369 | . 463 380 1529 760 618 768 712 . 139 Parts 273 | . 35 31 91 34 17 23 39 . 3 Haulers Intercepted 4 | . 1 . 2 . 1 . . . . Recyclers Shooed 4 | . . . . . 3 . 1 . . Parts Field Recycled . | . . . . . . . . . . Retrieved Matter . | . . . . . . . . . . Parts Self-Destructed . | . . . . . . . . . . Prevented . | . . . . . . . . . . Kills | -11 -10 -9 -8 -7 -6 -5 -5 -5 -4 ------- Run | Scr Mat Mat Mat Fac Fac Fac Ext Cet Fac Combat Hostiles Destroyed 100 | . 7 13 29 14 11 14 9 . 3 Melee 6 | . . . . . . 2 1 . 3 Guns 60 | . 7 13 27 5 4 2 2 . . Cannons 31 | . . . . 9 7 10 5 . . AOE 3 | . . . 2 . . . 1 . . Classes Destroyed 13 | . 6 1 2 1 . . 3 . . Worker 4 | . 1 . 1 . . . 2 . . Builder 6 | . . . 1 . . . 5 . . Tunneler 1 | . . . . . . . 1 . . Hauler 4 | . 1 . 2 . 1 . . . . Recycler 8 | . 1 . . 2 1 1 3 . . Watcher 7 | . 3 . 3 1 . . . . . Swarmer 13 | . 2 7 4 . . . . . . Grunt 48 | . 5 4 17 5 7 6 3 . 1 Brawler 3 | . . . 1 1 . 1 . . . Duelist 1 | . . . . . . . 1 . . Sentry 18 | . . 2 7 4 1 1 3 . . Programmer 15 | . . . . 4 3 6 . . 2 Behemoth 2 | . . . . . . . 2 . . Best Kill Streak 12 | . 5 5 12 3 4 3 8 . 1 Combat Bots Only 11 | . 2 5 11 3 3 3 3 . 1 Max Kills in Single Turn 3 | . 2 1 2 1 1 1 3 . 1 Gunslinging 1 | . 1 . . . . . . . . Exploded 1 | . . . 1 . . . 1 . . Melee 1 | . . . . . . 1 1 . 1 Uniques/NPCs Destroyed . | . . . . . . . . . . Combat | -11 -10 -9 -8 -7 -6 -5 -5 -5 -4 -------- Run | Scr Mat Mat Mat Fac Fac Fac Ext Cet Fac Damage Taken 11767 | . 426 367 1715 1256 1280 1828 2424 54 2417 Core 2544 | . 51 34 108 131 66 375 619 . 1160 Absorbed by Shields 61 | . . . . . . . 61 . . Core Remaining (%) 74 | 100 79 91 80 81 92 . . . . Volleys Fired 356 | . 37 33 85 49 54 50 40 . 8 Largest 4 | . 2 2 3 4 3 2 4 . 1 Hottest 195 | . 46 46 82 115 122 122 195 . 88 Shots Fired 839 | . 74 66 255 149 105 94 88 . 8 Gun 605 | . 74 66 252 100 49 34 23 . 7 Cannon 223 | . . . . 49 56 60 58 . . Launcher 10 | . . . 3 . . . 7 . . Special 1 | . . . . . . . . . 1 Kinetic 779 | . 74 66 252 149 105 60 73 . . Thermal 9 | . . . . . . . 4 . 5 Explosive 10 | . . . 3 . . . 7 . . Electromagnetic 41 | . . . . . . 34 4 . 3 Robot Hit Streak 38 | . 13 17 34 20 33 22 38 . 5 Robot Miss Streak 4 | . 1 4 2 2 1 1 3 . 1 Penetration Max 1 | . . . . . . . 1 . . Secondary Targets 11 | . 3 1 7 . . . . . . Max Gunslinging Chain 1 | . 1 1 1 . . . . . . Shots Hit Robots 675 | . 57 50 191 123 91 88 62 . 13 Core Hits 275 | . 18 19 75 37 33 35 46 . 12 Critical Hits 21 | . 1 . 7 . 2 3 8 . . Critical Kills 8 | . . . 3 . . 2 3 . . Critical Parts Destroyed 10 | . 1 . 4 . 2 1 2 . . Melee Attacks 37 | . . . . 3 2 15 3 . 14 Impact . | . . . . . . . . . . Slashing 37 | . . . . 3 2 15 3 . 14 Piercing . | . . . . . . . . . . Sneak Attacks 1 | . . . . . . . 1 . . Combat Hostiles . | . . . . . . . . . . Follow-up Attacks 3 | . . . . . . 3 . . . Damage Inflicted 15747 | . 836 683 2922 2341 2107 2524 3880 . 454 Guns 7462 | . 836 683 2611 1404 800 398 591 . 139 Cannons 5639 | . . . . 937 1307 1615 1780 . . Explosions 1800 | . . . 311 . . 141 1348 . . Melee 789 | . . . . . . 370 161 . 258 Ramming 46 | . . . . . . . . . 46 Kinetic 12377 | . 836 683 2611 2341 2107 1615 2184 . . Thermal 281 | . . . . . . 41 100 . 140 Explosive 1742 | . . . 311 . . 83 1348 . . Electromagnetic 512 | . . . . . . 415 87 . 10 Impact . | . . . . . . . . . . Slashing 789 | . . . . . . 370 161 . 258 Piercing . | . . . . . . . . . . Highest Corruption 17 | . . . . 1 1 8 17 17 14 Average Corruption 5 | . . . . 1 1 7 11 17 7 Corruption Purged . | . . . . . . . . . . Effects 110 | . . . . 4 5 38 44 3 16 Message Errors 19 | . . . . 1 2 7 4 . 5 Matter Fused 18 | . . . . . . 7 9 . 2 Heat Flow Errors 13 | . . . . . . 4 3 . 6 Energy Discharges 9 | . . . . . 1 3 4 . 1 Parts Rejected 1 | . . . . . . . 1 . . Data Loss (minor) 7 | . . . . . . 3 3 1 . Data Loss (major) 8 | . . . . . . 3 4 . 1 Misfires 4 | . . . . . . 4 . . . Alerts 1 | . . . . . . . 1 . . Misdirections 5 | . . . . . . . 3 2 . Targeting Errors 24 | . . . . 3 2 7 11 . 1 Weapon Failures 1 | . . . . . . . 1 . . Overload Shots . | . . . . . . . . . . Overflow Damage 299 | . . . 8 22 31 73 165 . . Projectiles 161 | . . . . 22 31 36 72 . . Explosions 113 | . . . 8 . . 12 93 . . Melee 25 | . . . . . . 25 . . . Knockbacks 49 | . . . . 5 23 13 8 . . Impact . | . . . . . . . . . . Kinetic 44 | . . . . 5 19 13 7 . . Secondary 5 | . . . . . 4 . 1 . . Self-Inflicted Damage 258 | . . . 18 . . 240 . . . Shots 5 | . . . 1 . . 4 . . . Rammed 22 | . . . . . . . . . 22 Targets Rammed 25 | . . . . . . . . . 25 Kicked . | . . . . . . . . . . Crushed 3 | . . . . . . . . . 3 Highest Temperature 399 | . 63 12 192 261 140 260 399 . 252 Average Temperature 61 | . 20 6 56 73 35 55 111 . 66 Received Heat Transfer 2595 | . 210 99 765 315 318 183 525 9 171 Siege Activations . | . . . . . . . . . . Robots Corrupted . | . . . . . . . . . . Combat Hostiles . | . . . . . . . . . . Parts Fried . | . . . . . . . . . . Impact Corruptions 1 | . . . . . . . 1 . . Robots Melted . | . . . . . . . . . . Combat Hostiles . | . . . . . . . . . . Parts Melted . | . . . . . . . . . . Heat Transferred 383 | . . . . . . 50 148 . 185 Parts Sabotaged . | . . . . . . . . . . Parts Stolen . | . . . . . . . . . . Parts Stripped . | . . . . . . . . . . Power Chain Reactions 1 | . . . . . . 1 . . . Missiles Intercepted . | . . . . . . . . . . Alert | -11 -10 -9 -8 -7 -6 -5 -5 -5 -4 ------- Run | Scr Mat Mat Mat Fac Fac Fac Ext Cet Fac Peak Influence 612 | . 179 420 612 359 275 271 184 24 135 Initial 177 | . . . 177 175 125 9 35 24 13 Average 187 | . 83 214 353 229 155 112 65 24 40 Maximum Alert Level 2 | . . 2 2 1 1 1 . . . Low Security (%) 61 | . 100 53 17 31 87 80 100 100 100 Level 1 29 | . . 23 49 68 12 19 . . . Level 2 8 | . . 22 33 . . . . . . Level 3 . | . . . . . . . . . . Level 4 . | . . . . . . . . . . Level 5 . | . . . . . . . . . . High Security . | . . . . . . . . . . Max Security . | . . . . . . . . . . Squads Dispatched 21 | . 1 1 4 4 4 3 1 . 3 Investigation 4 | . 1 . 1 1 . . 1 . . Extermination 10 | . . . . 3 3 3 . . 1 Reinforcement 7 | . . 1 3 . 1 . . . 2 Assault . | . . . . . . . . . . Garrison . | . . . . . . . . . . Intercept . | . . . . . . . . . . Construction Impeded 1 | . . . 1 . . . . . . Haulers Reinforced 2 | . . . . . 1 . . . 1 Stealth | -11 -10 -9 -8 -7 -6 -5 -5 -5 -4 --------- Run | Scr Mat Mat Mat Fac Fac Fac Ext Cet Fac Distress Signals 19 | . 3 2 4 1 3 . 2 1 3 Communications Jammed . | . . . . . . . . . . Distress Signals . | . . . . . . . . . . Times Spotted 176 | . 12 19 51 19 14 18 24 4 15 Peak Tracking Total 8 | . 4 6 8 4 4 4 6 5 7 Tactical Retreats 17 | . 3 . 4 2 . 3 3 . 2 Traps | -11 -10 -9 -8 -7 -6 -5 -5 -5 -4 ------- Run | Scr Mat Mat Mat Fac Fac Fac Ext Cet Fac Traps Triggered 3 | . 1 . . 1 . 1 . . . Indirectly . | . . . . . . . . . . Trap Hack Attempts . | . . . . . . . . . . Triggered . | . . . . . . . . . . Disarmed . | . . . . . . . . . . Reprogrammed . | . . . . . . . . . . Reused . | . . . . . . . . . . Traps Extracted . | . . . . . . . . . . Installed . | . . . . . . . . . . Triggered . | . . . . . . . . . . Machines | -11 -10 -9 -8 -7 -6 -5 -5 -5 -4 ---------- Run | Scr Mat Mat Mat Fac Fac Fac Ext Cet Fac Machines Disabled 11 | . . 2 . 1 . 7 1 . . Max in Single Turn 4 | . . 1 . 1 . 4 1 . . Garrison Access 1 | . . . . . 1 . . . . Machines Sabotaged . | . . . . . . . . . . Garrisons Compromised . | . . . . . . . . . . Overloaded Fab Kills . | . . . . . . . . . . Fab Network Shutdowns . | . . . . . . . . . . Hacking | -11 -10 -9 -8 -7 -6 -5 -5 -5 -4 --------- Run | Scr Mat Mat Mat Fac Fac Fac Ext Cet Fac Machines Accessed 22 | . 3 . 6 3 2 4 3 . 1 Terminals 17 | . 3 . 5 3 . 2 3 . 1 Fabricators 2 | . . . . . . 2 . . . Repair Stations . | . . . . . . . . . . Recycling Units . | . . . . . . . . . . Scanalyzers 2 | . . . 1 . 1 . . . . Garrison Access 1 | . . . . . 1 . . . . Total Hacks 64 | . 15 . 21 9 3 8 7 . 1 Successful 35 | . 8 . 12 5 3 7 . . . Failed 29 | . 7 . 9 4 . 1 7 . 1 Catastrophic 5 | . . . 1 1 . . 2 . 1 Database Lockouts . | . . . . . . . . . . Manual 24 | . 11 . 12 1 . . . . . Terminals 53 | . 15 . 18 9 . 3 7 . 1 Fabricators 5 | . . . . . . 5 . . . Repair Stations . | . . . . . . . . . . Recycling Units . | . . . . . . . . . . Scanalyzers 5 | . . . 3 . 2 . . . . Garrison Access 1 | . . . . . 1 . . . . Terminal Hacks 17 | . 5 . 5 5 . 2 . . . Prototype ID Bank 3 | . 1 . 1 1 . . . . . Open Door 1 | . . . . . . 1 . . . Branch Access Points 1 | . . . 1 . . . . . . Unreport Threat 4 | . 1 . 2 . . 1 . . . Locate Traps 2 | . 1 . . 1 . . . . . Dispatch Records 1 | . 1 . . . . . . . . Maintenance Status 1 | . . . . 1 . . . . . Hauler Manifests 1 | . 1 . . . . . . . . Registered Components 2 | . . . 1 1 . . . . . Zone Layout 1 | . . . . 1 . . . . . Fabricator Hacks 5 | . . . . . . 5 . . . Load Schematic 2 | . . . . . . 2 . . . Build 3 | . . . . . . 3 . . . Repair Station Hacks . | . . . . . . . . . . Recycling Unit Hacks . | . . . . . . . . . . Scanalyzer 5 | . . . 3 . 2 . . . . Insert Component 2 | . . . 1 . 1 . . . . Analyze 3 | . . . 2 . 1 . . . . Garrison Access Hacks 1 | . . . . . 1 . . . . Seal Access 1 | . . . . . 1 . . . . Unauthorized Hacks 7 | . 3 . 4 . . . . . . Terminals 7 | . 3 . 4 . . . . . . Track 3 | . 1 . 2 . . . . . . Botnet 2 | . 1 . 1 . . . . . . Operators 2 | . 1 . 1 . . . . . . Fabricators . | . . . . . . . . . . Repair Stations . | . . . . . . . . . . Recycling Units . | . . . . . . . . . . Scanalyzers . | . . . . . . . . . . Garrison Access . | . . . . . . . . . . Data Cores Recovered . | . . . . . . . . . . Used . | . . . . . . . . . . Hacking Detections 15 | . 3 . 5 2 . 1 3 . 1 Full Trace Events 3 | . . . 1 1 . . 1 . . Feedback Events . | . . . . . . . . . . Feedback Blocked . | . . . . . . . . . . Robot Schematics Acquired . | . . . . . . . . . . Robots Built . | . . . . . . . . . . Matter . | . . . . . . . . . . Time . | . . . . . . . . . . Total Robot Build Rating . | . . . . . . . . . . Part Schematics Acquired 2 | . . . 1 . 1 . . . . Parts Built 6 | . . . . . . 6 . . . Matter 438 | . . . . . . 438 . . . Time 219 | . . . . . . 219 . . . Total Part Build Rating 18 | . . . . . . 18 . . . Parts Repaired . | . . . . . . . . . . Time . | . . . . . . . . . . Parts Recycled . | . . . . . . . . . . Recycled Matter . | . . . . . . . . . . Retrieved Matter . | . . . . . . . . . . Retrieved Components . | . . . . . . . . . . Parts Scanalyzed 2 | . . . 1 . 1 . . . . Part Schematics Acquired 2 | . . . 1 . 1 . . . . Parts Damaged . | . . . . . . . . . . Bothacking | -11 -10 -9 -8 -7 -6 -5 -5 -5 -4 ------------ Run | Scr Mat Mat Mat Fac Fac Fac Ext Cet Fac Used RIF Installer . | . . . . . . . . . . Robots Hacked . | . . . . . . . . . . Non-combat . | . . . . . . . . . . Combat . | . . . . . . . . . . Robot Hacks Applied . | . . . . . . . . . . Relay Couplers Released 1 | . . . . . 1 . . . . Machine Destruction 1 | . . . . . 1 . . . . Robots Rewired . | . . . . . . . . . . Allies Hacked . | . . . . . . . . . . Hacks Repelled . | . . . . . . . . . . Allies | -11 -10 -9 -8 -7 -6 -5 -5 -5 -4 -------- Run | Scr Mat Mat Mat Fac Fac Fac Ext Cet Fac Total Allies . | . . . . . . . . . . Largest Group . | . . . . . . . . . . Highest-Rated Group . | . . . . . . . . . . Highest-Rated Ally . | . . . . . . . . . . Total Orders . | . . . . . . . . . . Ally Attacks . | . . . . . . . . . . Total Damage . | . . . . . . . . . . Kills . | . . . . . . . . . . Allies Corrupted . | . . . . . . . . . . Allies Melted . | . . . . . . . . . . Intel | -11 -10 -9 -8 -7 -6 -5 -5 -5 -4 ------- Run | Scr Mat Mat Mat Fac Fac Fac Ext Cet Fac Robot Analysis Total . | . . . . . . . . . . Derelict Logs Recovered . | . . . . . . . . . . Drone Launches . | . . . . . . . . . . Drone Recoveries . | . . . . . . . . . . Exploration | -11 -10 -9 -8 -7 -6 -5 -5 -5 -4 ------------- Run | Scr Mat Mat Mat Fac Fac Fac Ext Cet Fac Turns Passed 7592 | . 731 376 1771 1370 801 1237 838 25 443 Spaces Moved 3652 | 1 332 147 749 689 342 488 468 61 375 Core 274 | . . . . . . . 92 . 182 Treads 3194 | . 327 147 749 689 342 477 356 . 107 Legs 5 | 1 4 . . . . . . . . Wheels . | . . . . . . . . . . Hover 45 | . 1 . . . . 11 . . 33 Flight 134 | . . . . . . . 20 61 53 Fastest Speed 37 | 120 120 160 148 148 152 145 37 40 40 Average Speed 143 | 120 159 160 159 148 165 158 127 40 79 Slowest Speed 200 | 120 200 160 160 152 200 200 200 40 160 Overloaded Moves . | . . . . . . . . . . Propulsion Burnouts . | . . . . . . . . . . Robots Hopped 2 | . . . . . . . . . 2 Cave-ins Triggered 1 | . . . . . . . 1 . . Exploration Rate (%) 24 | 2 42 17 62 17 9 9 54 23 10 Regions Visited 9 Branch Regions 2 Pre-discovered Areas . | . . . . . . . . . . Known Exits Taken 3 | . . . . . . 1 1 1 . Unknown Exits Taken 6 | 1 1 1 1 1 1 . . . . Scrap Searched . | . . . . . . . . . . Spaces Dug 12 | . . . 6 3 2 . 1 . . Terrain Destroyed 99 | . . . 15 4 4 39 37 . . Melee 6 | . . . . 3 2 . 1 . . Projectile 36 | . . . . 1 2 18 15 . . AOE 57 | . . . 15 . . 21 21 . . Terrain Rammed . | . . . . . . . . . . Walls Destroyed . | . . . . . . . . . . Machines Disabled . | . . . . . . . . . . Actions | -11 -10 -9 -8 -7 -6 -5 -5 -5 -4 --------- Run | Scr Mat Mat Mat Fac Fac Fac Ext Cet Fac Total 5295 | . 475 237 1155 944 488 836 627 60 473 Wait 985 | . 83 37 249 172 71 247 88 . 38 Move 3638 | . 331 146 748 688 341 487 466 60 371 Hop 2 | . . . . . . . . . 2 Pick Up 48 | . 5 5 16 8 4 5 4 . 1 Fast Attach 53 | . 3 2 8 3 5 17 5 . 10 Attach 32 | . 1 4 2 6 5 4 9 . 1 Detach 8 | . . . 1 1 2 1 2 . 1 Swap 44 | . 6 3 17 6 3 6 3 . . Drop 69 | . 9 7 29 8 1 7 6 . 2 Fire 356 | . 37 33 85 49 54 50 40 . 8 Melee 34 | . . . . 3 2 12 3 . 14 Ram . | . . . . . . . . . . Kick . | . . . . . . . . . . Crush 25 | . . . . . . . . . 25 Escape Stasis 1 | . . . . . . . 1 . . Rewire . | . . . . . . . . . . Trap . | . . . . . . . . . . Miscellaneous . | . . . . . . . . . . Route ------- -11/Scrapyard -10/Materials -9/Materials -8/Materials -7/Factory -6/Factory -5/Factory -5/Extension (discovered 2 exits: *Fac / *Cet) -5/Cetus -4/Factory History --------- Turn | Location | Event 1 | -11/Scrapyard | Discovered new exit (range 0) 1 | -11/Scrapyard | Entered Materials 305 | -10/Materials | Build established: Mutant 431 | -10/Materials | Discovered new exit (range 15) 732 | -10/Materials | Entered another Materials area 732 | -9/Materials | Evolved 2 slots: Propulsion x2 1092 | -9/Materials | Discovered new exit (range 10) 1108 | -9/Materials | Entered another Materials area 1108 | -8/Materials | Evolved 2 slots: Utility x1, Weapon x1 1448 | -8/Materials | Build established: Tank 1660 | -8/Materials | Destroyed 11 combat bots 2382 | -8/Materials | Build established: Scavenger-Tank 2830 | -8/Materials | Discovered new exit (range 11) 2879 | -8/Materials | Entered Factory 2879 | -7/Factory | Evolved 2 slots: Utility x1, Weapon x1 3159 | -7/Factory | Build established: Tank 3482 | -7/Factory | Build established: Gunner 4151 | -7/Factory | Build established: Mutant 4208 | -7/Factory | Discovered new exit (range 21) 4249 | -7/Factory | Entered another Factory area 4249 | -6/Factory | Evolved 2 slots: Utility x2 4676 | -6/Factory | Lost 3 parts (1p1n1u) 4949 | -6/Factory | Discovered new exit (range 15) 4996 | -6/Factory | Build established: Scavenger-Mutant 5050 | -6/Factory | Entered another Factory area 5050 | -5/Factory | Evolved 2 slots: Utility x2 5143 | -5/Factory | Fabricated Adv. Treads (x2) 5288 | -5/Factory | Lost 3 parts (1n2u) 5337 | -5/Factory | Build established: Mutant 5414 | -5/Factory | Fabricated Adv. Treads (x2) 5490 | -5/Factory | Lost 5 parts (3n2w) 6096 | -5/Factory | Fabricated Adv. Treads (x2) 6280 | -5/Factory | Discovered new exit (range 6) 6286 | -5/Factory | Identified exit to Extension 6287 | -5/Factory | Entered Extension 6382 | -5/Extension | Build established: Machinist-Mutant 6611 | -5/Extension | Core integrity fell below 50% 6658 | -5/Extension | Spotted B-75 Beast 6778 | -5/Extension | Crushed by falling debris 6779 | -5/Extension | System corruption reached 10% 6816 | -5/Extension | Destroyed B-75 Beast 6821 | -5/Extension | Spotted B-75 Beast 6856 | -5/Extension | Lost 5 parts (3n1u1w) 6897 | -5/Extension | Destroyed B-75 Beast 6912 | -5/Extension | Disrupted transfer network 6917 | -5/Extension | Lost 3 parts (1n2w) 7062 | -5/Extension | Core integrity fell below 20% 7095 | -5/Extension | Lost 5 parts (2p1n2w) 7109 | -5/Extension | Discovered new exit (range 16) 7109 | -5/Extension | Discovered new exit (range 16) 7123 | -5/Extension | Identified exit to Factory 7124 | -5/Extension | Identified exit to Cetus 7125 | -5/Extension | Entered Cetus 7133 | -5/Cetus | Spotted Cetus Guard 7133 | -5/Cetus | Spotted Cetus Guard 7134 | -5/Cetus | Spotted Cetus Guard 7143 | -5/Cetus | Discovered exit to Factory (range 16) 7150 | -5/Cetus | Entered Factory 7150 | -4/Factory | Evolved 2 slots: Power x1, Utility x1 7279 | -4/Factory | Lost 7 parts (2n2u3w) 7299 | -4/Factory | Build established: Mutant 7333 | -4/Factory | Core integrity fell below 50% 7452 | -4/Factory | Spotted B-86 Titan 7519 | -4/Factory | System corruption reached 10% 7562 | -4/Factory | Core integrity fell below 20% 7593 | -4/Factory | Destroyed by Y-64 Sentinel with KE Penetrator Last Messages --------------- 07519_ Acquired 34 matter. 07524_ RK RPIGR6RR9ZP=CNXLI&G|NWK,9, 07524_ Acquired Tesla Rifle. 07536_ Slammed into P-70 Sage. 07537_ U-05 Engineer builds a Wall. 07539_ System corrupted: Heat flow error (+164). 07542_ U-05 Engineer lays Concrete. 07550_ Tesla Rifle destroyed. 07550_ Slammed into W-44 Eye. 07555_ System corrupted: Heat flow error (+109). 07569_ Critical hit. 07569_ Hvy. Treads destroyed. 07570_ Penetrated by Slug. 07572_ PF4#HT J 07587_ Imp. Core Analyzer destroyed. 07590_ Penetrated by Slug. Map ----- +----------------------------------------------------+ | ????????????????????????# #?#"" " " " " # "" | | ????????????????????????# #?# " " " " ##### ^ | | ?????????????????######## #?# " " " " #???# " | | ????????????????? # #?# " " " " #???# "Y | | ?????????????????"" """ # #?# #???# "" | | ????????????????""" """ # #################### | | ??????????????# """ R" + | | ??????????????# """ # #################/##"### | | ??????????????# # # #??????# # | | ??????????????# # # " "" #??????# """ # | | ??????????????# # # " "" #??????# """ # | | ??????????????########### # " T" #??????# """ # | | ????????????????????????# + " "" #??????# =# | | ????????????????????????# # " "" #??????######### | | ????????????????????????# # " #??????????????? | | ????????????????????????# # " #??????????????? | | ????????????????????????# # " !] #??????????????? | | ????????????????????????# # " #??????????????? | | ????????????????????????# + #??????????????? | | ????????????????????????# #########??????????????? | | ????????????????????????# #??????????????????????? | | ????????????????????????# #??????????????????????? | | ????????????????????????# #??????????????????????? | | ????????????????????????# #??????????????????????? | | ????????????????????????# #??????????????????????? | | ????????????????????????#@#??????????????????????? | | ????????????????????????# #??????????????????????? | | ????????????????????????# #??????????????????????? | | ???????????????????????? ??????????????????????? | | ???????????????????????? Y ??????????????????????? | | ???????????????????????? ??????????????????????? | | ????????????????????????#+#??????????????????????? | | ?????????????????????????????????????????????????? | | ?????????????????????????????????????????????????? | | ?????????????????????????????????????????????????? | | ?????????????????????????????????????????????????? | | ?????????????????????????????????????????????????? | | ?????????????????????????????????????????????????? | | ?????????????????????????????????????????????????? | | ?????????????????????????????????????????????????? | | ?????????????????????????????????????????????????? | | ?????????????????????????????????????????????????? | | ?????????????????????????????????????????????????? | | ?????????????????????????????????????????????????? | | ?????????????????????????????????????????????????? | | ?????????????????????????????????????????????????? | | ?????????????????????????????????????????????????? | | ?????????????????????????????????????????????????? | | ?????????????????????????????????????????????????? | | ?????????????????????????????????????????????????? | +----------------------------------------------------+ Best States ------------- Heat Dissipation 62 Energy Generation 21 Energy Capacity 280 Matter Stores 450 Matter Capacity 450 Sight Range 16 Robot Scan Range 16 Terrain Scan Range 24 Terrain Scan Density 210 Armor Coverage 750 Power Shielding 33 Utility Shielding 66 Reclamation Efficiency 10 Evasion (%) 62 Targeting Accuracy 13 Target Analysis 6 Core Analysis 8 Recoil Reduction 4 Offensive Hacking 10 Item Schematics ----------------- Hrd. Medium Armor Plating | -8/Materials | Scanalyzed Adv. Treads | -6/Factory | Scanalyzed Robot Schematics ------------------ None Fabricated ------------ Adv. Treads | x2 | -5/Factory Adv. Treads | x2 | -5/Factory Adv. Treads | x2 | -5/Factory Alien Tech Used ----------------- None Achievements -------------- None Challenges ------------ None Game ------ Seed AluminumFireBoomstick Manual? 0 Play Time 01:22:56 Cumulative 85.3 hours Start 2021.02.19 @ 19:16:12 End 2021.02.20 @ 10:47:16 Sessions 3 Manual Loads 0 Difficulty Rogue Special Mode None Game No. 158 Rogue 158 Adventurer 0 Explorer 0 Win Type - Total 0 Types 0/0/0/0/0/0/0/0/0 Lore% 56 Gallery% 58 Achievement% 43 Wizard Run 0 Options --------- ASCII 0 Keyboard 1 Movement Numpad Keybinds 0 Fullscreen 2 Font 18/Terminus Map View 76x50 Tactical HUD 1 Map Filters NONE Filters NONE Steam 1 RUN: 60cf09c9-ae91-4edf-a004-c56e803104c0